[Event "Cracovia Festival-A 2023"]
[Site "Krakow"]
[Date "2024.01.02"]
[Round "6.10"]
[White "Cieslak, Patryk"]
[Black "Sernecki, Franciszek"]
[Result "0-1"]
[ECO "B12"]
[WhiteElo "2284"]
[BlackElo "2325"]
[Annotator "RC"]
[PlyCount "88"]
[EventDate "2023.12.24"]
[EventType "swiss"]
[EventCountry "POL"]
[SourceTitle "playchess.com"]
[Source "ChessBase"]
[SourceQuality "1"]
[TimeControl "40/5400+30:1800+30"]

1. e4 {[%emt 0:00:02]} c6 {[%emt 0:00:15]} 2. d4 {[%emt 0:00:13]} d5 {[%emt 0:00:04]} 3. e5 {[%emt 0:00:10]} Bf5 {[%emt 0:00:05]} 4. Nf3 {[%emt 0:00:03]} e6 {[%emt 0:00:23]} 5. Be2 {[%emt 0:00:01]} Ne7 {[%emt 0:01:24]} 6. O-O {[%emt 0:00:07]} Nd7 {[%emt 0:00:39]} 7. c3 {[%emt 0:02:18]} h6 {[%emt 0:06:36]} 8. Na3 {[%emt 0:00:38]} c5 {[%emt 0:06:28]} 9. dxc5 {[%emt 0:02:34]} Nc6 {[%emt 0:05:33]} 10. c4 {[%emt 0:19:38]} Nxc5 {[%emt 0:08:30]} 11. Be3 {[%emt 0:10:26]} Be7 {[%emt 0:13:12]} 12. Nd4 {[%emt 0:08:06]} Nxd4 {[%emt 0:02:36]} 13. Bxd4 {[%emt 0:00:40]} O-O {[%emt 0:03:13]} 14. Rc1 {[%emt 0:10:55]} Rc8 {[%emt 0:03:19]} 15. cxd5 {[%emt 0:04:26]} Qxd5 {[%emt 0:07:08]} 16. Bc4 {[%emt 0:00:11]} Qd8 {[%emt 0:04:10]} 17. Nc2 {[%emt 0:04:53]} Ne4 {[%emt 0:08:02]} 18. Qe2 {[%emt 0:10:40]} b5 {[%emt 0:10:04]} 19. Bd3 {[%emt 0:03:29]} Rxc2 {[%emt 0:00:38]} 20. Rxc2 {[%emt 0:00:02]} Qxd4 {[%emt 0:00:05]} 21. Bxe4 {[%emt 0:01:41]} Bxe4 {[%emt 0:04:22]} 22. Rd1 {[%emt 0:00:24]} Qxe5 {[%emt 0:01:24]} 23. f3 {[%emt 0:00:18]} Bxc2 {[%emt 0:02:35]} 24. Qxe5 {[%emt 0:00:02]} Bxd1 {[%emt 0:00:03]} 25. Qxb5 {[%emt 0:00:42]} Bf6 {[%emt 0:01:34]} 26. Qa5 {[%emt 0:00:34]} Bd4+ {[%emt 0:01:22]} 27. Kh1 {[%emt 0:00:21]} Bb6 {[%emt 0:00:08]} 28. Qc3 {[%emt 0:00:27]} Rd8 {[%emt 0:00:24]} 29. h4 {[%emt 0:00:02]} Rd4 {[%emt 0:01:49]} 30. Qe1 {[%emt 0:00:59]} Bd8 {[%emt 0:02:13]} 31. Kg1 {[%emt 0:00:18]} Rxh4 {[%emt 0:01:23]} 32. Kf2 {[%emt 0:01:03]} Rd4 {[%emt 0:01:06]} 33. Qc3 {[%emt 0:00:02]} e5 {[%emt 0:03:12]} 34. Qc8 {[%emt 0:00:11]} g6 {[%emt 0:02:19]} 35. Qb8 {[%emt 0:00:01]} Rd2+ {[%emt 0:00:54]} 36. Ke1 {[%emt 0:02:11]} Rd7 {[%emt 0:00:36]} 37. Qc8 {[%emt 0:00:15]} Rd4 {[%emt 0:00:35]} 38. Qb8 {[%emt 0:00:01]} Kg7 {[%emt 0:00:27]} 39. Qxa7 {[%emt 0:01:40]} Bh4+ {[%emt 0:00:30]} 40. Kf1 {[%emt 0:00:00]} Bg3 {[%emt 0:00:00]} 41. Qc5 {[%emt 0:01:20]} Rd2 {[%emt 0:01:40]} 42. Qe3 {[%emt 0:00:56]} Rxb2 {[%emt 0:00:30]} 43. f4 {[%emt 0:00:26]} Be2+ {[%emt 0:00:04]} 44. Qxe2 {[%emt 0:00:08]} Rb1+ {[%emt 0:00:03]} 0-1

[Event "Cracovia Festival-A 2023"]
[Site "Krakow"]
[Date "2024.01.02"]
[Round "6.11"]
[White "Kozak, Antoni"]
[Black "Lukasiewicz, Krzysztof"]
[Result "1-0"]
[ECO "C65"]
[WhiteElo "2442"]
[BlackElo "2290"]
[Annotator "RC"]
[PlyCount "97"]
[EventDate "2023.12.24"]
[EventType "swiss"]
[EventCountry "POL"]
[SourceTitle "playchess.com"]
[Source "ChessBase"]
[SourceQuality "1"]
[TimeControl "40/5400+30:1800+30"]

1. e4 {[%emt 0:05:54]} e5 {[%emt 0:06:17]} 2. Nf3 {[%emt 0:00:19]} Nc6 {[%emt 0:00:03]} 3. Bb5 {[%emt 0:00:18]} Nf6 {[%emt 0:01:52]} 4. d3 {[%emt 0:02:10]} Bc5 {[%emt 0:01:41]} 5. c3 {[%emt 0:00:07]} d5 {[%emt 0:08:55]} 6. Nxe5 {[%emt 0:06:32]} Qd6 {[%emt 0:00:20]} 7. d4 {[%emt 0:22:06]} Bb6 {[%emt 0:06:54]} 8. Nxc6 {[%emt 0:09:05]} bxc6 {[%emt 0:00:42]} 9. e5 {[%emt 0:00:24]} Qe6 {[%emt 0:00:05]} 10. Be2 {[%emt 0:00:53]} Nd7 {[%emt 0:00:24]} 11. b4 {[%emt 0:04:40]} f6 {[%emt 0:02:02]} 12. exf6 {[%emt 0:06:47]} Nxf6 {[%emt 0:00:07]} 13. O-O {[%emt 0:00:35]} O-O {[%emt 0:00:12]} 14. Be3 {[%emt 0:03:22]} a5 {[%emt 0:02:02]} 15. Nd2 {[%emt 0:00:57]} axb4 {[%emt 0:00:14]} 16. cxb4 {[%emt 0:00:03]} Ra3 {[%emt 0:00:04]} 17. Nb3 {[%emt 0:00:40]} Ng4 {[%emt 0:11:35]} 18. Bc1 {[%emt 0:05:49]} Ra4 {[%emt 0:20:05]} 19. a3 {[%emt 0:00:26]} Qg6 {[%emt 0:00:05]} 20. Qd3 {[%emt 0:05:07]} Qe8 {[%emt 0:04:41]} 21. Ra2 {[%emt 0:02:46]} Bf5 {[%emt 0:03:58]} 22. Qg3 {[%emt 0:00:41]} Nf6 {[%emt 0:00:06]} 23. Bd1 {[%emt 0:02:24]} Ne4 {[%emt 0:03:27]} 24. Qe3 {[%emt 0:00:09]} Qg6 {[%emt 0:00:38]} 25. f3 {[%emt 0:04:04]} Nd6 {[%emt 0:00:14]} 26. Qf2 {[%emt 0:02:30]} Nb5 {[%emt 0:05:22]} 27. Bb2 {[%emt 0:01:17]} Rfa8 {[%emt 0:05:10]} 28. Ra1 {[%emt 0:05:31]} R4a7 {[%emt 0:04:08]} 29. Na5 {[%emt 0:01:06]} Bxa5 {[%emt 0:00:07]} 30. bxa5 {[%emt 0:00:05]} Rxa5 {[%emt 0:00:03]} 31. a4 {[%emt 0:00:29]} Nd6 {[%emt 0:02:12]} 32. Re1 {[%emt 0:00:33]} Nc4 {[%emt 0:00:30]} 33. Bc3 {[%emt 0:00:08]} R5a6 {[%emt 0:00:45]} 34. Re7 {[%emt 0:02:19]} Qd6 {[%emt 0:01:21]} 35. Qe1 {[%emt 0:00:34]} c5 {[%emt 0:00:23]} 36. Rxg7+ {[%emt 0:01:06]} Kf8 {[%emt 0:00:24]} 37. dxc5 {[%emt 0:03:38]} Qxc5+ {[%emt 0:00:04]} 38. Kh1 {[%emt 0:00:05]} Re6 {[%emt 0:00:04]} 39. Qg3 {[%emt 0:00:41]} Nd6 {[%emt 0:08:30]} 40. Rg8+ {[%emt 0:00:00]} Ke7 {[%emt 0:00:00]} 41. Qg7+ {[%emt 0:04:14]} Nf7 {[%emt 0:00:09]} 42. Rxa8 {[%emt 0:01:21]} Qc4 {[%emt 0:00:05]} 43. Bb3 {[%emt 0:02:50]} Qxb3 {[%emt 0:01:59]} 44. Qf8+ {[%emt 0:00:06]} Kd7 {[%emt 0:00:03]} 45. Qxf7+ {[%emt 0:00:07]} Kd6 {[%emt 0:00:09]} 46. Qxf5 {[%emt 0:00:17]} Qxc3 {[%emt 0:00:06]} 47. Rd8+ {[%emt 0:00:04]} Kc5 {[%emt 0:00:05]} 48. Qxd5+ {[%emt 0:00:12]} Kb4 {[%emt 0:00:08]} 49. Qb5# {[%emt 0:00:04]} 1-0

[Event "Cracovia Festival-A 2023"]
[Site "Krakow"]
[Date "2024.01.02"]
[Round "6.12"]
[White "Golubka, Petro"]
[Black "Dziewonski, Dariusz"]
[Result "1/2-1/2"]
[ECO "A06"]
[WhiteElo "2440"]
[BlackElo "2224"]
[Annotator "RC"]
[PlyCount "128"]
[EventDate "2023.12.24"]
[EventType "swiss"]
[EventCountry "POL"]
[SourceTitle "playchess.com"]
[Source "ChessBase"]
[SourceQuality "1"]
[TimeControl "40/5400+30:1800+30"]

1. Nf3 {[%emt 0:10:41]} d5 {[%emt 0:00:17]} 2. g3 {[%emt 0:00:05]} Nf6 {[%emt 0:00:11]} 3. Bg2 {[%emt 0:00:02]} e6 {[%emt 0:00:07]} 4. b3 {[%emt 0:00:02]} Be7 {[%emt 0:01:29]} 5. Bb2 {[%emt 0:00:04]} O-O {[%emt 0:00:37]} 6. d3 {[%emt 0:00:02]} b6 {[%emt 0:10:46]} 7. Nbd2 {[%emt 0:00:07]} Bb7 {[%emt 0:00:47]} 8. O-O {[%emt 0:00:05]} c5 {[%emt 0:05:44]} 9. e3 {[%emt 0:00:15]} Nc6 {[%emt 0:07:38]} 10. c4 {[%emt 0:00:19]} dxc4 {[%emt 0:05:20]} 11. Nxc4 {[%emt 0:02:29]} Nb4 {[%emt 0:02:11]} 12. d4 {[%emt 0:00:28]} cxd4 {[%emt 0:04:15]} 13. Bxd4 {[%emt 0:02:42]} Be4 {[%emt 0:16:24]} 14. Nfe5 {[%emt 0:01:47]} Bxg2 {[%emt 0:01:21]} 15. Kxg2 {[%emt 0:01:26]} Qd5+ {[%emt 0:01:04]} 16. Qf3 {[%emt 0:06:02]} Rfd8 {[%emt 0:05:59]} 17. Rfd1 {[%emt 0:00:57]} Qxf3+ {[%emt 0:07:03]} 18. Kxf3 {[%emt 0:03:37]} Nc2 {[%emt 0:03:57]} 19. Rac1 {[%emt 0:01:05]} Nxd4+ {[%emt 0:00:06]} 20. exd4 {[%emt 0:00:25]} Rac8 {[%emt 0:00:37]} 21. Ne3 {[%emt 0:00:24]} Ba3 {[%emt 0:02:15]} 22. Rxc8 {[%emt 0:00:24]} Rxc8 {[%emt 0:00:04]} 23. d5 {[%emt 0:00:19]} exd5 {[%emt 0:09:27]} 24. Nxd5 {[%emt 0:00:07]} Nxd5 {[%emt 0:03:52]} 25. Rxd5 {[%emt 0:00:51]} f6 {[%emt 0:01:40]} 26. Nc4 {[%emt 0:01:05]} Bc5 {[%emt 0:00:19]} 27. Rd7 {[%emt 0:00:22]} a6 {[%emt 0:01:50]} 28. a4 {[%emt 0:00:24]} b5 {[%emt 0:00:43]} 29. axb5 {[%emt 0:00:12]} axb5 {[%emt 0:00:04]} 30. Nd2 {[%emt 0:00:13]} f5 {[%emt 0:05:45]} 31. Rb7 {[%emt 0:01:07]} Rd8 {[%emt 0:01:06]} 32. Rxb5 {[%emt 0:00:49]} Rxd2 {[%emt 0:00:30]} 33. Rxc5 {[%emt 0:00:03]} Rd3+ {[%emt 0:00:03]} 34. Kg2 {[%emt 0:00:03]} Rxb3 {[%emt 0:00:05]} 35. Rxf5 {[%emt 0:00:02]} g6 {[%emt 0:01:26]} 36. Ra5 {[%emt 0:00:03]} h5 {[%emt 0:00:24]} 37. Ra7 {[%emt 0:00:03]} Rb2 {[%emt 0:01:01]} 38. Kf3 {[%emt 0:00:13]} Rc2 {[%emt 0:00:30]} 39. Rd7 {[%emt 0:00:42]} Rb2 {[%emt 0:00:29]} 40. h4 {[%emt 0:00:00]} Rc2 {[%emt 0:00:00]} 41. Re7 {[%emt 0:00:25]} Ra2 {[%emt 0:01:37]} 42. Ke3 {[%emt 0:00:09]} Rb2 {[%emt 0:01:07]} 43. f3 {[%emt 0:00:14]} Rb4 {[%emt 0:01:57]} 44. Re4 {[%emt 0:00:07]} Rb5 {[%emt 0:00:37]} 45. Kf4 {[%emt 0:00:21]} Rf5+ {[%emt 0:00:11]} 46. Ke3 {[%emt 0:00:02]} Ra5 {[%emt 0:00:06]} 47. Rd4 {[%emt 0:00:16]} Kg7 {[%emt 0:01:30]} 48. Kf4 {[%emt 0:00:04]} Kf6 {[%emt 0:03:50]} 49. g4 {[%emt 0:00:17]} hxg4 {[%emt 0:00:10]} 50. fxg4 {[%emt 0:00:06]} Kg7 {[%emt 0:04:02]} 51. Rd7+ {[%emt 0:00:05]} Kg8 {[%emt 0:00:05]} 52. Re7 {[%emt 0:00:04]} Rb5 {[%emt 0:00:57]} 53. Re5 {[%emt 0:02:00]} Rb7 {[%emt 0:03:25]} 54. Kg5 {[%emt 0:00:22]} Kg7 {[%emt 0:00:05]} 55. Rd5 {[%emt 0:00:14]} Ra7 {[%emt 0:00:07]} 56. Rb5 {[%emt 0:00:18]} Rc7 {[%emt 0:00:06]} 57. Ra5 {[%emt 0:00:04]} Rb7 {[%emt 0:00:04]} 58. h5 {[%emt 0:00:09]} gxh5 {[%emt 0:00:08]} 59. gxh5 {[%emt 0:00:02]} Kh7 {[%emt 0:01:34]} 60. h6 {[%emt 0:00:07]} Rc7 {[%emt 0:00:48]} 61. Kh5 {[%emt 0:00:05]} Rb7 {[%emt 0:02:01]} 62. Rg5 {[%emt 0:00:08]} Ra7 {[%emt 0:00:15]} 63. Rg7+ {[%emt 0:00:06]} Rxg7 {[%emt 0:00:03]} 64. hxg7 {[%emt 0:00:02]} Kxg7 {[%emt 0:00:08]} 1/2-1/2

[Event "Cracovia Festival-A 2023"]
[Site "Krakow"]
[Date "2024.01.02"]
[Round "6.13"]
[White "Kowalczyk, Pawel"]
[Black "Cukrowski, Filip"]
[Result "0-1"]
[ECO "A00"]
[WhiteElo "2295"]
[BlackElo "2402"]
[Annotator "RC"]
[PlyCount "115"]
[EventDate "2023.12.24"]
[EventType "swiss"]
[EventCountry "POL"]
[SourceTitle "playchess.com"]
[Source "ChessBase"]
[SourceQuality "1"]
[TimeControl "40/5400+30:1800+30"]

1. a3 {[%emt 0:00:03]} d5 {[%emt 0:14:31]} 2. d4 {[%emt 0:00:08]} Nf6 {[%emt 0:01:42]} 3. Nf3 {[%emt 0:00:13]} g6 {[%emt 0:00:39]} 4. Bf4 {[%emt 0:00:31]} Bg7 {[%emt 0:00:22]} 5. e3 {[%emt 0:00:09]} O-O {[%emt 0:01:31]} 6. Nbd2 {[%emt 0:00:11]} Nbd7 {[%emt 0:01:17]} 7. b4 {[%emt 0:02:54]} Nh5 {[%emt 0:09:10]} 8. Bg5 {[%emt 0:01:00]} Qe8 {[%emt 0:01:02]} 9. g4 {[%emt 0:02:37]} Nhf6 {[%emt 0:00:08]} 10. Bf4 {[%emt 0:00:12]} Nxg4 {[%emt 0:07:06]} 11. Bxc7 {[%emt 0:01:49]} e5 {[%emt 0:00:34]} 12. h3 {[%emt 0:03:03]} Nh6 {[%emt 0:04:28]} 13. Nb3 {[%emt 0:01:49]} Nf5 {[%emt 0:04:27]} 14. Bb5 {[%emt 0:11:03]} exd4 {[%emt 0:09:11]} 15. Nbxd4 {[%emt 0:00:08]} Nxd4 {[%emt 0:00:16]} 16. Nxd4 {[%emt 0:00:10]} Qe7 {[%emt 0:02:10]} 17. Bf4 {[%emt 0:04:34]} Nf6 {[%emt 0:03:39]} 18. Qd3 {[%emt 0:07:29]} Ne4 {[%emt 0:00:52]} 19. h4 {[%emt 0:00:51]} a5 {[%emt 0:03:07]} 20. Rb1 {[%emt 0:09:27]} axb4 {[%emt 0:01:03]} 21. axb4 {[%emt 0:00:07]} h5 {[%emt 0:05:04]} 22. f3 {[%emt 0:07:54]} Nd6 {[%emt 0:00:23]} 23. Kf2 {[%emt 0:00:02]} Nf5 {[%emt 0:08:00]} 24. Ne2 {[%emt 0:02:15]} Be6 {[%emt 0:04:38]} 25. Bg5 {[%emt 0:03:12]} Qc7 {[%emt 0:00:28]} 26. Qd2 {[%emt 0:00:19]} Ra3 {[%emt 0:03:53]} 27. Bd3 {[%emt 0:00:15]} Qb6 {[%emt 0:05:00]} 28. Rhg1 {[%emt 0:02:45]} Re8 {[%emt 0:00:43]} 29. c3 {[%emt 0:02:46]} Qa7 {[%emt 0:02:33]} 30. Rb2 {[%emt 0:01:18]} Nd6 {[%emt 0:02:53]} 31. Nd4 {[%emt 0:00:17]} Qb6 {[%emt 0:01:12]} 32. Ra2 {[%emt 0:00:50]} Rxa2 {[%emt 0:02:00]} 33. Qxa2 {[%emt 0:00:02]} Nc4 {[%emt 0:00:35]} 34. Qc2 {[%emt 0:02:00]} Ne5 {[%emt 0:00:38]} 35. Be2 {[%emt 0:00:48]} Rc8 {[%emt 0:00:24]} 36. Bf4 {[%emt 0:01:08]} Bd7 {[%emt 0:01:11]} 37. Rg5 {[%emt 0:00:30]} Nc6 {[%emt 0:00:37]} 38. Nb5 {[%emt 0:03:56]} Ne7 {[%emt 0:00:22]} 39. Nd6 {[%emt 0:02:06]} Rc6 {[%emt 0:00:54]} 40. Nb5 {[%emt 0:00:00]} Rc8 {[%emt 0:00:00]} 41. Nd6 {[%emt 0:05:26]} Rxc3 {[%emt 0:16:07]} 42. Qa2 {[%emt 0:00:06]} Qxb4 {[%emt 0:00:51]} 43. Qa8+ {[%emt 0:01:03]} Nc8 {[%emt 0:00:05]} 44. Rxd5 {[%emt 0:00:55]} Rc1 {[%emt 0:01:18]} 45. Rd1 {[%emt 0:02:37]} Rxd1 {[%emt 0:00:28]} 46. Bxd1 {[%emt 0:00:02]} Qd2+ {[%emt 0:01:07]} 47. Be2 {[%emt 0:00:40]} Bc3 {[%emt 0:00:20]} 48. Nxc8 {[%emt 0:00:17]} Qe1+ {[%emt 0:00:05]} 49. Kg2 {[%emt 0:00:04]} Qxe2+ {[%emt 0:00:06]} 50. Kg1 {[%emt 0:00:01]} Qd1+ {[%emt 0:03:52]} 51. Kg2 {[%emt 0:00:05]} Qc2+ {[%emt 0:00:05]} 52. Kg1 {[%emt 0:00:32]} Qb1+ {[%emt 0:00:04]} 53. Kg2 {[%emt 0:00:17]} Qb2+ {[%emt 0:00:04]} 54. Kg1 {[%emt 0:00:41]} Qa1+ {[%emt 0:01:03]} 55. Qxa1 {[%emt 0:00:08]} Bxa1 {[%emt 0:00:02]} 56. Nb6 {[%emt 0:00:09]} Be6 {[%emt 0:00:15]} 57. Kf2 {[%emt 0:00:08]} Bf6 {[%emt 0:00:33]} 58. Ke2 0-1

[Event "Cracovia Festival-A 2023"]
[Site "Krakow"]
[Date "2024.01.02"]
[Round "6.14"]
[White "Sieciechowicz, Marcin"]
[Black "Ashwath, R.."]
[Result "1/2-1/2"]
[ECO "E20"]
[WhiteElo "2391"]
[BlackElo "2284"]
[Annotator "RC"]
[PlyCount "25"]
[EventDate "2023.12.24"]
[EventType "swiss"]
[EventCountry "POL"]
[SourceTitle "playchess.com"]
[Source "ChessBase"]
[SourceQuality "1"]
[TimeControl "40/5400+30:1800+30"]

1. d4 {[%emt 0:00:06]} Nf6 {[%emt 0:05:37]} 2. c4 {[%emt 0:00:08]} e6 {[%emt 0:00:07]} 3. Nc3 {[%emt 0:00:06]} Bb4 {[%emt 0:00:02]} 4. f3 {[%emt 0:00:10]} Nc6 {[%emt 0:03:12]} 5. e4 {[%emt 0:00:29]} e5 {[%emt 0:02:32]} 6. a3 {[%emt 0:07:54]} Bxc3+ {[%emt 0:01:46]} 7. bxc3 {[%emt 0:00:02]} d6 {[%emt 0:00:16]} 8. d5 {[%emt 0:02:24]} Na5 {[%emt 0:01:01]} 9. Bd3 {[%emt 0:00:57]} b6 {[%emt 0:03:21]} 10. Bg5 {[%emt 0:03:40]} Ba6 {[%emt 0:05:51]} 11. Qe2 {[%emt 0:02:34]} h6 {[%emt 0:11:05]} 12. Bh4 {[%emt 0:04:38]} Rc8 {[%emt 0:07:00]} 13. Nh3 {[%emt 0:06:48]} 1/2-1/2

[Event "Cracovia Festival-A 2023"]
[Site "Krakow"]
[Date "2024.01.02"]
[Round "6.15"]
[White "Janeczko, Jakub"]
[Black "Baumegger, Siegfried"]
[Result "0-1"]
[ECO "B36"]
[WhiteElo "2283"]
[BlackElo "2388"]
[Annotator "RC"]
[PlyCount "134"]
[EventDate "2023.12.24"]
[EventType "swiss"]
[EventCountry "POL"]
[SourceTitle "playchess.com"]
[Source "ChessBase"]
[SourceQuality "1"]
[TimeControl "40/5400+30:1800+30"]

1. e4 {[%emt 0:02:34]} c5 {[%emt 0:00:12]} 2. Nf3 {[%emt 0:00:37]} Nc6 {[%emt 0:00:05]} 3. d4 {[%emt 0:00:08]} cxd4 {[%emt 0:00:05]} 4. Nxd4 {[%emt 0:00:04]} g6 {[%emt 0:00:14]} 5. c4 {[%emt 0:00:06]} Nf6 {[%emt 0:00:21]} 6. Nc3 {[%emt 0:00:06]} d6 {[%emt 0:00:07]} 7. f3 {[%emt 0:00:04]} Bg7 {[%emt 0:00:27]} 8. Be3 {[%emt 0:00:12]} O-O {[%emt 0:00:09]} 9. Be2 {[%emt 0:00:11]} Nd7 {[%emt 0:06:25]} 10. Qd2 {[%emt 0:10:09]} Nc5 {[%emt 0:12:13]} 11. O-O {[%emt 0:06:38]} Bd7 {[%emt 0:10:05]} 12. b3 {[%emt 0:07:15]} Qa5 {[%emt 0:15:19]} 13. Rfd1 {[%emt 0:09:45]} Nxd4 {[%emt 0:03:13]} 14. Bxd4 {[%emt 0:00:06]} Bxd4+ {[%emt 0:01:51]} 15. Qxd4 {[%emt 0:00:05]} Bc6 {[%emt 0:03:06]} 16. Qe3 {[%emt 0:06:49]} Qb6 {[%emt 0:03:55]} 17. Rab1 {[%emt 0:05:47]} a5 {[%emt 0:02:17]} 18. a3 {[%emt 0:01:59]} Na4 {[%emt 0:04:42]} 19. Qxb6 {[%emt 0:00:15]} Nxb6 {[%emt 0:00:04]} 20. Kf2 {[%emt 0:07:22]} Rfc8 {[%emt 0:02:55]} 21. Rdc1 {[%emt 0:08:16]} Kf8 {[%emt 0:06:15]} 22. h4 {[%emt 0:01:32]} h6 {[%emt 0:03:18]} 23. Ke3 {[%emt 0:09:42]} e6 {[%emt 0:01:21]} 24. f4 {[%emt 0:02:57]} Ke7 {[%emt 0:06:30]} 25. g3 {[%emt 0:01:35]} h5 {[%emt 0:11:35]} 26. Ra1 {[%emt 0:01:06]} Bd7 {[%emt 0:01:08]} 27. Kd4 {[%emt 0:03:08]} Rc7 {[%emt 0:00:45]} 28. Nd1 {[%emt 0:03:07]} Bc6 {[%emt 0:02:38]} 29. b4 {[%emt 0:02:16]} axb4 {[%emt 0:01:51]} 30. axb4 {[%emt 0:00:01]} Rcc8 {[%emt 0:00:16]} 31. Ne3 {[%emt 0:04:18]} Nd7 {[%emt 0:00:10]} 32. Nd5+ {[%emt 0:06:35]} Kd8 {[%emt 0:01:58]} 33. Nc3 {[%emt 0:00:22]} b6 {[%emt 0:00:12]} 34. Ke3 {[%emt 0:01:03]} Ke7 {[%emt 0:00:05]} 35. Bd3 {[%emt 0:00:31]} f5 {[%emt 0:00:21]} 36. exf5 {[%emt 0:00:41]} gxf5 {[%emt 0:00:06]} 37. Be2 {[%emt 0:00:18]} Nf6 {[%emt 0:00:18]} 38. b5 {[%emt 0:01:01]} Bb7 {[%emt 0:01:15]} 39. Na4 {[%emt 0:00:00]} Rg8 {[%emt 0:00:42]} 40. Nxb6 {[%emt 0:00:00]} Rxg3+ {[%emt 0:00:00]} 41. Kd4 {[%emt 0:03:58]} Rxa1 {[%emt 0:08:01]} 42. Rxa1 {[%emt 0:00:02]} Ne4 {[%emt 0:00:12]} 43. Na4 {[%emt 0:08:34]} Nd2 {[%emt 0:02:30]} 44. Bd1 {[%emt 0:01:57]} Be4 {[%emt 0:10:54]} 45. Nc5 {[%emt 0:01:06]} dxc5+ {[%emt 0:01:08]} 46. Kxc5 {[%emt 0:00:02]} Nb3+ {[%emt 0:03:25]} 47. Bxb3 {[%emt 0:00:02]} Rxb3 {[%emt 0:00:06]} 48. Ra7+ {[%emt 0:00:14]} Kf6 {[%emt 0:00:11]} 49. Rd7 {[%emt 0:09:06]} Rf3 {[%emt 0:02:42]} 50. Kb6 {[%emt 0:04:57]} Rxf4 {[%emt 0:02:11]} 51. c5 {[%emt 0:00:03]} Rf1 {[%emt 0:02:06]} 52. c6 {[%emt 0:00:21]} Rc1 {[%emt 0:00:23]} 53. c7 {[%emt 0:00:37]} f4 {[%emt 0:00:55]} 54. Rd6 {[%emt 0:02:37]} Bf5 {[%emt 0:02:51]} 55. Rc6 {[%emt 0:01:07]} Rxc6+ {[%emt 0:00:06]} 56. Kxc6 {[%emt 0:00:02]} e5 {[%emt 0:00:08]} 57. b6 {[%emt 0:00:02]} Be4+ {[%emt 0:02:06]} 58. Kd7 {[%emt 0:00:02]} Bf5+ {[%emt 0:00:11]} 59. Kd8 {[%emt 0:02:09]} f3 {[%emt 0:00:07]} 60. b7 {[%emt 0:00:32]} f2 {[%emt 0:00:05]} 61. b8=Q {[%emt 0:02:57]} f1=Q {[%emt 0:00:07]} 62. Qb6+ {[%emt 0:00:08]} Kg7 {[%emt 0:01:35]} 63. Qd6 {[%emt 0:01:58]} Bg4 {[%emt 0:00:25]} 64. Qe7+ {[%emt 0:00:18]} Qf7 {[%emt 0:00:21]} 65. Qxe5+ {[%emt 0:00:15]} Qf6+ {[%emt 0:00:20]} 66. Qxf6+ {[%emt 0:00:01]} Kxf6 {[%emt 0:00:06]} 67. Ke8 {[%emt 0:00:53]} Be6 {[%emt 0:00:32]} 0-1

[Event "Cracovia Festival-A 2023"]
[Site "Krakow"]
[Date "2024.01.02"]
[Round "6.16"]
[White "Ernst, Robert"]
[Black "Akhvlediani, Irakli"]
[Result "1-0"]
[ECO "A09"]
[WhiteElo "2271"]
[BlackElo "2359"]
[Annotator "RC"]
[PlyCount "67"]
[EventDate "2023.12.24"]
[EventType "swiss"]
[EventCountry "POL"]
[SourceTitle "playchess.com"]
[Source "ChessBase"]
[SourceQuality "1"]
[TimeControl "40/5400+30:1800+30"]

1. Nf3 {[%emt 0:00:06]} d5 2. c4 {[%emt 0:00:09]} d4 {[%emt 0:08:57]} 3. b4 {[%emt 0:00:08]} g5 {[%emt 0:00:08]} 4. Qb3 {[%emt 0:00:07]} Bg7 {[%emt 0:09:50]} 5. Nxg5 {[%emt 0:00:33]} e5 {[%emt 0:04:48]} 6. Qg3 {[%emt 0:06:47]} Qe7 {[%emt 0:04:15]} 7. b5 {[%emt 0:11:55]} f5 {[%emt 0:04:48]} 8. d3 {[%emt 0:13:36]} c5 {[%emt 0:05:58]} 9. Nxh7 {[%emt 0:16:09]} Be6 {[%emt 0:39:58]} 10. Ng5 {[%emt 0:10:16]} Bc8 {[%emt 0:04:02]} 11. f4 {[%emt 0:06:14]} e4 {[%emt 0:01:47]} 12. dxe4 {[%emt 0:01:48]} fxe4 {[%emt 0:00:04]} 13. Nxe4 {[%emt 0:00:17]} d3 {[%emt 0:06:06]} 14. Nbc3 {[%emt 0:05:27]} Nf6 {[%emt 0:02:37]} 15. Qg6+ {[%emt 0:02:50]} Kf8 {[%emt 0:00:45]} 16. Nxf6 {[%emt 0:00:46]} Rh6 {[%emt 0:02:48]} 17. Qxd3 {[%emt 0:00:34]} Qxf6 {[%emt 0:00:17]} 18. Bd2 {[%emt 0:00:34]} Bg4 {[%emt 0:00:45]} 19. Rd1 {[%emt 0:02:01]} Nd7 {[%emt 0:00:27]} 20. Nd5 {[%emt 0:00:15]} Qh4+ {[%emt 0:01:33]} 21. g3 {[%emt 0:00:03]} Qh5 {[%emt 0:00:07]} 22. Ne3 {[%emt 0:05:01]} Re8 {[%emt 0:00:02]} 23. Qd5 {[%emt 0:02:58]} Bd4 {[%emt 0:01:14]} 24. Qxh5 {[%emt 0:00:46]} Bxh5 {[%emt 0:00:02]} 25. Nf5 {[%emt 0:01:29]} Bxe2 {[%emt 0:01:10]} 26. Bxe2 {[%emt 0:00:33]} Rhe6 {[%emt 0:00:01]} 27. Nxd4 {[%emt 0:01:05]} cxd4 {[%emt 0:00:02]} 28. Bb4+ {[%emt 0:02:51]} Kg8 {[%emt 0:00:06]} 29. O-O {[%emt 0:00:29]} Rxe2 {[%emt 0:00:04]} 30. Rxd4 {[%emt 0:00:15]} Rxa2 {[%emt 0:00:28]} 31. Rxd7 {[%emt 0:00:24]} Ree2 {[%emt 0:00:05]} 32. Rd2 {[%emt 0:00:07]} Raxd2 {[%emt 0:00:03]} 33. Bxd2 {[%emt 0:00:07]} Rxd2 {[%emt 0:00:02]} 34. Ra1 {[%emt 0:00:08]} 1-0

[Event "Cracovia Festival-A 2023"]
[Site "Krakow"]
[Date "2024.01.02"]
[Round "6.17"]
[White "Zdybel, Przemyslaw"]
[Black "Skytte, Rasmus"]
[Result "0-1"]
[ECO "B06"]
[WhiteElo "2180"]
[BlackElo "2337"]
[Annotator "RC"]
[PlyCount "62"]
[EventDate "2023.12.24"]
[EventType "swiss"]
[EventCountry "POL"]
[SourceTitle "playchess.com"]
[Source "ChessBase"]
[SourceQuality "1"]
[TimeControl "40/5400+30:1800+30"]

1. e4 {[%emt 0:00:01]} g6 {[%emt 0:00:36]} 2. d4 {[%emt 0:00:10]} Bg7 {[%emt 0:00:06]} 3. Nc3 {[%emt 0:00:07]} d6 {[%emt 0:01:08]} 4. Be3 {[%emt 0:00:36]} a6 {[%emt 0:00:35]} 5. Qd2 {[%emt 0:00:39]} b5 {[%emt 0:02:57]} 6. h4 {[%emt 0:01:19]} h6 {[%emt 0:01:12]} 7. O-O-O {[%emt 0:15:34]} b4 {[%emt 0:08:46]} 8. Nce2 {[%emt 0:01:19]} Nf6 {[%emt 0:01:18]} 9. f3 {[%emt 0:00:49]} a5 {[%emt 0:01:55]} 10. g4 {[%emt 0:02:08]} h5 {[%emt 0:01:17]} 11. gxh5 {[%emt 0:26:54]} Nxh5 {[%emt 0:04:52]} 12. Nh3 {[%emt 0:01:55]} Nc6 {[%emt 0:04:28]} 13. Kb1 {[%emt 0:13:55]} Bd7 {[%emt 0:06:30]} 14. Ng5 {[%emt 0:02:43]} a4 {[%emt 0:05:55]} 15. Nc1 {[%emt 0:10:22]} Qb8 {[%emt 0:06:02]} 16. Rg1 {[%emt 0:04:51]} e6 {[%emt 0:08:55]} 17. f4 {[%emt 0:05:08]} Ne7 {[%emt 0:02:14]} 18. Bh3 {[%emt 0:01:09]} d5 {[%emt 0:05:22]} 19. Nd3 {[%emt 0:00:21]} Nf6 {[%emt 0:04:05]} 20. Ne5 {[%emt 0:02:27]} Rxh4 {[%emt 0:04:30]} 21. f5 {[%emt 0:01:30]} Rxh3 {[%emt 0:12:50]} 22. Nxd7 {[%emt 0:02:47]} Kxd7 {[%emt 0:01:10]} 23. fxe6+ {[%emt 0:00:13]} fxe6 {[%emt 0:00:11]} 24. Nxh3 {[%emt 0:00:29]} Nxe4 {[%emt 0:00:26]} 25. Qd3 {[%emt 0:00:37]} a3 {[%emt 0:04:37]} 26. b3 {[%emt 0:02:15]} Nc3+ {[%emt 0:01:02]} 27. Ka1 {[%emt 0:00:03]} Nxd1 {[%emt 0:00:28]} 28. Qxd1 {[%emt 0:00:03]} c5 {[%emt 0:02:16]} 29. Kb1 {[%emt 0:00:39]} cxd4 {[%emt 0:01:05]} 30. Bxd4 {[%emt 0:00:09]} Bxd4 {[%emt 0:00:20]} 31. Qxd4 {[%emt 0:00:06]} Qh8 {[%emt 0:00:06]} 0-1